bitfinex-derivatives/quotes_ETHF0:USTF0_20241008
["timestamp","ask_amount","ask_price","bid_price","bid_amount"]
[1728417480381,0.4907,2444.2,2444.1,0.40933]
[1728417480681,0.4907,2444.2,2444.1,2.95933]
[1728417480981,4.43565274,2444.2,2444.1,2.95933]
[1728417482674,4.43565274,2444.2,2443.9,2.55]
[1728417482877,3.61715,2444.0,2443.9,2.55]
[1728417483086,7.56210274,2444.0,2443.9,2.55]
[1728417483479,7.56210274,2444.0,2443.5,0.095]
[1728417483480,0.40936,2443.9,2443.8,2.55]
[1728417483687,0.88106,2443.9,2443.8,2.55]
[1728417483876,4.82601274,2443.9,2443.8,2.55]
[1728417484776,4.82601274,2443.9,2443.8,2.95938]
[1728417484777,4.41665274,2443.9,2443.8,2.95938]
[1728417485684,4.41665274,2443.9,2443.8,2.55]
[1728417485876,4.82601274,2443.9,2443.8,2.55]
[1728417487681,0.40939,2443.7,2443.6,2.55]
[1728417487876,3.61719,2443.7,2443.6,2.55]
[1728417488079,8.06424274,2443.7,2443.6,2.55]
[1728417490883,4.85644274,2443.7,2443.6,2.55]
[1728417491275,8.06424274,2443.7,2443.6,2.55]
[1728417491784,0.40943,2443.5,2443.4,2.55]
[1728417492183,4.35438274,2443.5,2443.4,2.55]
[1728417493990,4.35438274,2443.5,2443.4,2.95944]
[1728417494286,4.35438274,2443.5,2443.4,2.55]
[1728417494488,4.35438274,2443.5,2443.4,2.95944]
[1728417495087,3.94495274,2443.5,2443.4,2.95944]
[1728417495392,0.4717,2443.9,2443.8,0.40938]
[1728417495690,3.94495274,2443.9,2443.8,2.95938]
[1728417495885,3.2078,2444.1,2444.0,0.40934]
[1728417496086,3.2078,2444.1,2444.0,2.95934]
[1728417496391,7.15275274,2444.1,2444.0,2.95934]
[1728417499188,7.15275274,2444.1,2444.0,7.40494908]
[1728417499189,3.2078,2444.1,2444.0,7.40494908]
[1728417499890,7.15275274,2444.1,2444.0,7.40494908]
[1728417502091,7.15275274,2444.1,2444.0,2.95934]
[1728417502294,7.15275274,2444.1,2444.0,2.55]
[1728417502694,7.15275274,2444.1,2444.0,2.95934]
[1728417503891,7.15275274,2444.1,2444.0,2.55]
[1728417504092,7.15275274,2444.1,2444.0,2.95934]
[1728417504393,7.56208274,2444.1,2444.0,2.55]
[1728417504690,7.56208274,2444.1,2443.9,2.95936]
[1728417504890,3.94495274,2444.0,2443.9,2.95936]
[1728417505097,4.35429274,2444.0,2443.9,2.55]
[1728417505292,4.84669274,2444.0,2443.9,2.55]
[1728417505995,4.43735274,2444.0,2443.9,2.95936]
[1728417506194,4.43735274,2444.0,2443.9,2.55]
[1728417506195,4.84669274,2444.0,2443.9,2.55]
[1728417510093,4.84669274,2444.0,2443.9,2.95936]
[1728417510494,4.43735274,2444.0,2443.9,2.95936]
[1728417510895,4.84669274,2444.0,2443.9,2.55]
[1728417512296,4.84669274,2444.0,2443.9,2.95936]
[1728417512499,4.84669274,2444.0,2443.9,2.55]
[1728417516303,4.84669274,2444.0,2443.9,2.95936]
[1728417516500,4.43735274,2444.0,2443.9,2.95936]
[1728417517810,4.84669274,2444.0,2443.9,2.95936]
[1728417520008,4.84669274,2444.0,2443.9,2.55]
[1728417520615,4.84669274,2444.0,2443.9,2.95936]
[1728417521317,4.84669274,2444.0,2443.9,3.18998755]
[1728417521708,4.84669274,2444.0,2443.9,3.59934755]
[1728417522526,4.84669274,2444.0,2443.9,3.18998755]
[1728417526123,4.84669274,2444.0,2443.9,2.55]
[1728417526319,4.84669274,2444.0,2443.9,3.19001856]
[1728417528531,8.05449274,2444.0,2443.9,3.19001856]
[1728417531431,7.64515274,2444.0,2443.9,3.59937856]
[1728417531831,8.05449274,2444.0,2443.9,3.59937856]
[1728417532328,8.05449274,2444.0,2443.9,3.19001856]
[1728417532631,0.40936,2443.9,2443.8,1.58936]
[1728417532827,0.40936,2443.9,2443.8,2.22937079]
[1728417533026,4.35431274,2443.9,2443.8,1.82001079]
[1728417533225,4.35431274,2443.9,2443.8,0.64001079]
[1728417534327,3.94495274,2443.9,2443.8,1.04939079]
[1728417534537,3.94495274,2443.9,2443.8,3.25336223]
[1728417534538,4.35431274,2443.9,2443.8,3.25336223]
[1728417534833,3.94495274,2443.9,2443.8,3.25336223]
[1728417535936,4.35431274,2443.9,2443.8,2.84398223]
[1728417536138,4.35431274,2443.9,2443.8,1.66399998]
[1728417536435,4.35431274,2443.9,2443.8,0.63999999]
[1728417538236,4.35431274,2443.9,2443.8,1.66402046]
[1728417538733,4.35431274,2443.9,2443.7,0.40939]
[1728417538734,0.40938,2443.8,2443.7,0.40939]
[1728417538941,4.35433274,2443.8,2443.7,2.07347615]
[1728417539138,3.94495274,2443.8,2443.7,2.07347615]
[1728417539535,4.35433274,2443.8,2443.7,2.07347615]
[1728417539731,3.94495274,2443.8,2443.7,0.40939]
[1728417539938,3.94495274,2443.8,2443.7,2.0734296]
[1728417540337,10.35433274,2443.8,2443.7,0.64001523]
[1728417540652,1.02357,2443.6,2443.2,0.50448]
[1728417540837,1.02357,2443.6,2443.2,0.40948]
[1728417540838,7.15275274,2443.3,2443.2,0.40948]
[1728417541146,7.56221274,2443.3,2443.2,1.64711134]
[1728417541347,7.56221274,2443.3,2443.2,0.63350436]
[1728417542834,7.15275274,2443.3,2443.0,2.9695]
[1728417543033,4.35445274,2443.1,2443.0,2.56]
[1728417543243,3.94495274,2443.1,2443.0,3.60286976]
[1728417545541,3.94495274,2443.1,2442.9,1.2748]
[1728417545847,7.15275274,2443.0,2442.5,1.05852833]
[1728417546142,3.2078,2442.7,2442.4,0.6553]
[1728417546346,4.35455274,2442.5,2442.3,1.303]
[1728417546650,3.94495274,2442.4,2442.3,1.71263]
[1728417546835,7.15275274,2442.4,2442.3,1.303]
[1728417547040,7.15275274,2442.4,2442.3,0.6611]
[1728417547041,7.56236274,2442.4,2442.3,0.6611]
[1728417547333,0.40965,2442.2,2442.0,0.095]
[1728417547531,4.28371,2442.5,2441.9,0.6611]
[1728417547532,7.15275274,2442.1,2441.9,0.6611]
[1728417547739,3.94495274,2442.0,2441.9,0.6611]
[1728417547941,3.94495274,2442.0,2441.9,3.6308]
[1728417548335,3.2078,2442.1,2442.0,0.40968]
[1728417548534,7.15275274,2442.1,2442.0,1.10958]
[1728417549143,4.173,2442.6,2442.3,0.40963]
[1728417549144,3.2078,2442.4,2442.3,0.40963]
[1728417549336,3.2078,2442.4,2442.3,2.96963]
[1728417549337,7.15275274,2442.4,2442.3,2.96963]
[1728417549535,7.15275274,2442.4,2442.3,0.40963]
[1728417549938,7.56236274,2442.4,2442.2,0.641]
[1728417550139,3.94495274,2442.2,2442.0,0.6999]
[1728417550339,7.15275274,2442.1,2442.0,1.10958]
[1728417550943,7.15275274,2442.1,2441.9,3.201]
[1728417551152,3.94495274,2442.0,2441.9,3.61068]
[1728417551839,3.94495274,2442.0,2441.9,1.05068]
[1728417552038,3.94495274,2442.0,2441.9,0.40968]
[1728417552241,3.94495274,2442.0,2441.7,3.2569]
[1728417552444,7.15275274,2441.8,2441.7,0.6969]
[1728417552645,7.15275274,2441.8,2441.7,1.10663]
[1728417553848,7.15275274,2441.8,2441.7,0.6969]
[1728417554036,7.15275274,2441.8,2441.6,1.07464]
[1728417554346,7.15275274,2441.8,2441.7,2.96973]
[1728417557238,7.15275274,2441.8,2441.7,0.40973]
[1728417557436,7.15275274,2441.8,2441.3,3.2609]
[1728417557645,7.15275274,2441.8,2441.6,0.40974]
[1728417557646,1.3501,2441.7,2441.6,0.40974]
[1728417558061,5.29505274,2441.7,2441.6,0.40974]
[1728417558345,5.29505274,2441.7,2441.5,0.40976]
[1728417558552,1.3501,2441.7,2441.5,0.40976]
[1728417558849,3.94495274,2441.6,2441.2,0.095]
[1728417559048,3.94495274,2441.6,2441.0,1.4449]
[1728417559049,7.15275274,2441.3,2441.0,1.4449]
[1728417559252,3.94495274,2441.1,2440.8,0.40987]
[1728417559546,0.40989,2440.8,2440.5,1.75982]
[1728417559746,7.15275274,2440.6,2440.5,1.75982]
[1728417560056,6.53757687,2440.6,2440.5,6.38049583]
[1728417560251,0.40985,2441.0,2440.5,17.32885437]
[1728417560252,3.2078,2441.0,2440.5,17.32885437]
[1728417560439,3.2078,2441.0,2440.9,2.96986]
[1728417560440,7.15275274,2441.0,2440.9,2.96986]
[1728417560953,3.2078,2441.0,2440.9,0.40986]
[1728417561248,7.15275274,2441.0,2440.9,0.40986]
[1728417565253,7.15275274,2441.0,2440.7,2.56]
[1728417565548,3.2078,2441.0,2440.9,0.40986]
[1728417565949,7.15275274,2441.0,2440.9,0.40986]
[1728417566747,7.15275274,2441.0,2440.7,3.2513]
[1728417566748,7.56260274,2441.0,2440.8,0.40987]
[1728417566950,3.61765,2441.0,2440.8,0.40987]
[1728417567147,3.94495274,2440.9,2440.4,0.095]
[1728417567355,0.40987,2440.9,2440.7,2.96989]
[1728417567545,3.94495274,2440.8,2440.7,0.40989]
[1728417567749,3.94495274,2440.8,2440.5,6.82577754]
[1728417567750,4.64115274,2440.8,2440.5,2.56]
[1728417567950,7.56267274,2440.6,2440.4,0.40994]
[1728417568153,3.94495274,2440.5,2440.3,3.2513]
[1728417568351,3.94495274,2440.5,2440.3,3.66127]
[1728417568657,3.2078,2440.6,2440.5,0.40993]
[1728417568849,3.2078,2440.6,2440.5,2.96993]
[1728417569056,0.6962,2440.8,2440.7,0.4099]
[1728417569250,4.64115274,2440.8,2440.7,0.4099]
[1728417569450,3.94495274,2440.8,2440.7,0.4099]
[1728417570253,3.2078,2440.9,2440.7,7.81728462]
[1728417570450,3.2078,2440.9,2440.8,0.40988]
[1728417570651,0.6615,2441.3,2441.1,0.40982]
[1728417570851,3.94495274,2441.2,2441.1,0.40982]
[1728417571260,3.94495274,2441.2,2441.1,2.96982]
[1728417572259,3.94495274,2441.2,2441.1,0.40982]
[1728417574954,3.94495274,2441.2,2440.8,3.2525]
[1728417575162,3.94495274,2441.0,2440.9,0.40986]
[1728417575350,3.94495274,2441.0,2440.9,9.9873698]
[1728417576068,3.94495274,2441.0,2440.9,12.5473698]
[1728417576253,0.6615,2441.3,2440.9,18.1375098]
[1728417576449,0.6615,2441.3,2441.1,0.40983]
[1728417576450,3.94495274,2441.2,2441.1,0.40983]
[1728417576653,3.94495274,2441.2,2441.1,4.34753]
[1728417579460,3.94495274,2441.2,2441.1,0.40983]
[1728417579964,3.94495274,2441.2,2440.7,0.095]
[1728417579965,0.40988,2440.8,2440.7,0.095]
[1728417580169,0.4099,2440.7,2440.5,0.40992]
[1728417580461,3.94495274,2440.6,2440.4,2.96995]
[1728417580763,3.94495274,2440.6,2440.4,2.56]
[1728417580970,0.6925,2440.7,2440.6,0.40991]
[1728417581158,4.63745274,2440.7,2440.6,0.40991]
[1728417581655,3.94495274,2440.7,2440.6,0.40991]
[1728417581858,3.94495274,2440.7,2440.6,2.39371]
[1728417582063,3.94495274,2440.7,2440.6,1.09521]
[1728417582262,3.94495274,2440.7,2440.6,0.40991]
[1728417583456,3.2078,2441.1,2440.6,20.07143762]
[1728417583657,3.2078,2441.1,2441.0,2.96985]
[1728417583658,7.15275274,2441.1,2441.0,2.96985]
[1728417583857,3.2078,2441.1,2441.0,0.40985]
[1728417584056,7.15275274,2441.1,2441.0,0.40985]
[1728417584662,8.17734274,2441.1,2440.4,3.8887688]
[1728417584866,3.94495274,2440.7,2440.6,0.40991]
[1728417585067,3.94495274,2440.7,2440.6,2.96991]
[1728417585664,0.7198,2440.9,2440.8,0.40988]
[1728417585974,4.66475274,2440.9,2440.8,0.40988]
[1728417587071,4.66475274,2440.9,2440.4,3.2506]
[1728417587272,4.66475274,2440.9,2440.4,3.86148762]
[1728417587273,3.94495274,2440.5,2440.4,3.86148762]
[1728417587472,3.94495274,2440.7,2440.5,4.90844898]
[1728417587674,3.2078,2441.4,2440.7,1.02472]
[1728417587970,3.2078,2441.4,2441.0,2.56]
[1728417587971,0.6547,2441.2,2441.0,2.56]
[1728417588172,0.6547,2441.2,2441.1,0.40983]
[1728417588367,4.59965274,2441.2,2441.1,0.40983]
[1728417589271,4.59965274,2441.2,2440.6,1.11978]
[1728417589272,0.40984,2441.1,2440.9,0.40986]
[1728417589470,3.94495274,2440.7,2440.6,0.40991]
[1728417589679,7.15275274,2440.7,2440.6,0.40991]
[1728417590574,3.94495274,2440.7,2440.6,0.40991]
[1728417590771,3.2078,2440.8,2440.7,0.4099]
[1728417590976,7.15275274,2440.8,2440.7,2.9699]
[1728417591364,7.56264274,2440.8,2440.6,0.40991]
[1728417591565,4.63575274,2440.7,2440.6,0.40991]
[1728417592278,7.84355274,2440.7,2440.6,0.40991]
[1728417592968,7.84355274,2440.7,2440.2,1.05852833]
[1728417593164,7.84355274,2440.7,2440.5,0.40993]
[1728417593165,0.7131,2440.6,2440.5,0.40993]
[1728417593369,3.2078,2440.6,2440.5,0.40993]
[1728417593568,7.15275274,2440.6,2440.5,0.40993]
[1728417594178,3.94495274,2440.6,2440.5,0.40993]
[1728417595275,7.15275274,2440.6,2440.5,0.40993]
[1728417595476,7.15275274,2440.6,2440.1,3.9649]
[1728417595682,7.15275274,2440.2,2440.1,4.3749]
[1728417595981,3.94495274,2440.2,2440.1,2.97]
[1728417596181,7.15275274,2440.2,2440.1,2.97]
[1728417596675,3.94495274,2440.2,2440.1,2.97]
[1728417596980,4.65365274,2440.2,2440.1,2.97]
[1728417598373,4.65365274,2440.2,2440.1,0.41]
[1728417598873,4.65365274,2440.2,2440.1,2.97]
[1728417599377,3.8685,2440.5,2440.4,0.40995]
[1728417599578,3.2078,2440.5,2440.4,2.96995]
[1728417599776,4.173,2441.0,2440.4,2.96995]
[1728417599777,0.7027,2440.8,2440.5,0.40993]
[1728417599977,0.7027,2440.8,2440.7,2.9699]
[1728417600179,3.2078,2441.3,2440.7,2.56]
[1728417600476,3.2078,2441.3,2440.9,2.56]
[1728417600776,1.4311,2441.4,2441.2,2.56]
[1728417601369,0.4098,2441.3,2441.0,2.56]
[1728417601574,1.4311,2441.4,2441.1,0.40982]
[1728417601771,1.4311,2441.4,2441.3,0.4098]
[1728417601981,1.4311,2441.4,2441.2,2.9698]
[1728417602479,1.4311,2441.4,2441.2,2.56]
[1728417602776,3.2078,2441.6,2441.3,5.67990057]
[1728417603076,1.4007,2441.8,2441.5,2.96975]
[1728417603476,1.4007,2441.8,2441.1,3.61852833]
[1728417603673,0.40978,2441.5,2441.1,2.96982]
[1728417603983,3.61756,2441.6,2441.2,0.40981]
[1728417604174,3.61756,2441.6,2441.1,2.56]
[1728417604175,0.40976,2441.5,2441.1,2.56]
[1728417604375,0.40979,2441.4,2441.1,2.96982]
[1728417604574,0.40984,2441.1,2440.8,2.14590833]
[1728417604781,0.40982,2441.2,2440.9,0.40986]
[1728417604974,4.6446,2441.3,2440.6,3.9615]
[1728417605281,3.2078,2441.0,2440.5,2.56]
[1728417605477,3.2078,2441.0,2440.9,0.40986]
[1728417605677,1.84661,2441.3,2440.8,2.56]
[1728417605678,1.4368,2441.3,2440.8,2.56]
[1728417605871,1.4368,2441.3,2441.1,2.56]
[1728417606071,3.94495274,2441.0,2440.9,13.69455353]
[1728417606280,3.94495274,2441.0,2440.8,10.02620353]
[1728417606481,3.94495274,2440.8,2440.5,2.56]
[1728417606675,3.2078,2441.1,2440.4,3.16802833]
[1728417606676,0.40985,2441.0,2440.7,2.9699]
[1728417607173,3.94495274,2441.0,2440.9,2.96986]
[1728417607476,3.2078,2441.4,2440.9,2.96986]
[1728417607477,3.2078,2441.7,2440.9,17.78910257]
[1728417607679,3.94495274,2441.4,2441.3,0.40979]
[1728417608382,3.94495274,2441.4,2441.0,2.56]
[1728417608577,3.94495274,2441.1,2441.0,2.56]
[1728417609279,1.4128,2441.6,2441.3,0.40978]
[1728417609480,3.94495274,2441.4,2441.3,2.56]
[1728417609675,3.94495274,2441.4,2441.2,2.56]
[1728417609880,3.94495274,2441.3,2441.2,2.96981]
[1728417610874,3.94495274,2441.3,2441.2,2.56]
[1728417611075,3.94495274,2441.3,2440.9,3.231]
[1728417611282,3.94495274,2441.1,2441.0,0.40985]
[1728417611477,3.94495274,2441.1,2441.0,10.26719156]
[1728417611678,1.4128,2441.6,2441.0,15.85734156]
[1728417611981,3.94495274,2441.6,2441.5,2.96976]
[1728417612175,3.2078,2441.7,2441.3,2.56]
[1728417612373,0.40977,2441.5,2441.2,0.40981]
[1728417612581,3.2078,2441.7,2441.1,2.56]
[1728417612582,3.94495274,2441.2,2441.1,2.96983]
[1728417612980,3.94495274,2441.2,2441.1,12.50552979]
[1728417613285,3.94495274,2441.2,2440.9,2.56]
[1728417613488,3.94495274,2441.2,2440.7,2.96989]
[1728417613489,4.35480274,2441.0,2440.7,2.96989]
[1728417613688,3.94495274,2440.8,2440.7,2.96989]
[1728417613986,3.94495274,2440.8,2440.7,7.54779167]
[1728417614683,3.94495274,2440.8,2440.7,0.58917702]
[1728417614684,7.15275274,2440.8,2440.7,0.58917702]
[1728417614878,7.15275274,2440.8,2440.2,0.50497]
[1728417614879,0.40993,2440.6,2440.2,0.50497]
[1728417615187,7.15275274,2440.3,2440.1,3.19227097]
[1728417615380,3.2078,2440.3,2440.2,0.99917621]
[1728417615591,3.61773,2440.6,2440.2,1.57975853]
[1728417615777,7.15275274,2440.3,2440.2,0.40998]
[1728417615985,7.15275274,2440.3,2440.2,1.16986646]
[1728417616187,7.15275274,2440.3,2440.2,0.40998]
[1728417616481,7.15275274,2440.3,2440.1,2.56]
[1728417616684,7.15275274,2440.3,2440.0,0.63226738]
[1728417616685,4.68035274,2440.2,2440.0,0.63226738]
[1728417616888,3.94495274,2440.1,2440.0,0.63226738]
[1728417617683,4.35495274,2440.1,2440.0,0.63226738]
[1728417617884,3.94495274,2440.1,2440.0,0.63226738]
[1728417618789,3.94495274,2440.1,2440.0,1.04228738]
[1728417618979,3.94495274,2440.1,2440.0,0.63226738]
[1728417619188,4.35495274,2440.1,2440.0,0.63226738]
[1728417619591,3.94495274,2440.1,2440.0,0.63226738]
[1728417620992,3.94495274,2440.1,2440.0,1.04228738]
[1728417621291,3.94495274,2440.1,2440.0,0.63226738]
[1728417621891,3.94495274,2440.1,2440.0,1.04228738]
[1728417622690,3.94495274,2440.1,2440.0,5.41065684]
[1728417622988,0.7354,2440.2,2440.1,0.41]
[1728417623187,4.68035274,2440.2,2440.1,0.41]
[1728417623591,4.68035274,2440.2,2440.1,2.97]
[1728417623788,3.94495274,2440.2,2440.1,2.97]
[1728417623991,0.7027,2440.5,2440.4,0.40995]
[1728417624388,4.64765274,2440.5,2440.4,0.40995]
[1728417625990,3.94495274,2440.5,2440.4,0.40995]
[1728417626189,5.29255,2441.2,2440.4,11.42653006]
[1728417626190,3.2078,2441.1,2440.4,11.42653006]
[1728417626392,3.2078,2441.1,2440.9,2.56]
[1728417626599,3.61764,2441.1,2440.8,0.40988]
[1728417626897,3.94495274,2440.9,2440.8,0.40988]
[1728417627290,3.94495274,2440.9,2440.8,5.83178961]
[1728417627598,3.94495274,2440.9,2440.8,10.26846287]
[1728417630099,3.2078,2441.1,2441.0,0.40985]
[1728417630297,0.40975,2441.6,2441.3,0.40979]
[1728417630497,3.94495274,2441.1,2441.0,9.91620951]
[1728417630692,3.94495274,2441.1,2440.9,0.40985]
[1728417630888,3.94495274,2440.7,2440.5,4.6004]
[1728417631093,0.7311,2441.0,2440.7,4.55717449]
[1728417631094,3.61769,2440.8,2440.7,4.55717449]
[1728417631302,3.61769,2440.8,2440.4,2.96993]
[1728417631303,7.56264274,2440.8,2440.4,2.96993]
[1728417631604,3.94495274,2440.5,2440.4,2.96995]
[1728417631996,3.94495274,2440.5,2440.4,7.38458626]
[1728417633094,3.2078,2440.8,2440.4,22.61478757]
[1728417633396,4.173,2441.3,2441.2,0.40981]
[1728417633698,0.6995,2441.4,2441.3,0.4098]
[1728417634095,0.6995,2441.4,2441.3,4.68254072]
[1728417634096,3.94495274,2441.4,2441.3,4.68254072]
[1728417634301,3.94495274,2441.4,2441.3,4.27274072]
[1728417634695,3.94495274,2441.4,2441.2,2.56]
[1728417634895,3.94495274,2441.3,2441.2,2.96981]
[1728417637303,3.94495274,2441.3,2441.1,0.40983]
[1728417637501,3.94495274,2441.1,2441.0,2.96984]
[1728417637804,3.94495274,2441.1,2440.9,0.40985]
[1728417638115,3.94495274,2441.0,2440.9,0.40985]
[1728417640808,3.94495274,2441.0,2440.8,0.40988]
[1728417641108,4.31594,2441.1,2440.8,0.40988]
[1728417641298,3.94495274,2440.9,2440.8,0.40988]
[1728417642910,3.94495274,2440.9,2440.7,2.96988]
[1728417643114,3.94495274,2440.8,2440.7,2.96988]
[1728417645416,7.15275274,2440.8,2440.6,0.4099]
[1728417645713,0.6705,2440.7,2440.6,0.40991]
[1728417645916,4.61545274,2440.7,2440.6,0.40991]
[1728417646114,4.61545274,2440.7,2440.5,2.56]
[1728417646412,0.40994,2440.5,2440.3,0.40995]
[1728417646607,3.94495274,2440.6,2440.3,0.40997]
[1728417646608,7.15275274,2440.4,2440.3,0.40997]
[1728417647212,7.15275274,2440.4,2440.2,0.40997]
[1728417647415,3.2078,2440.4,2440.3,0.40997]
[1728417647814,3.94495274,2440.4,2440.3,2.96997]
[1728417648015,0.6705,2440.7,2440.6,0.40991]
[1728417648525,4.61545274,2440.7,2440.6,0.40991]
[1728417649109,0.40984,2441.1,2440.9,0.40985]
[1728417649110,0.6833,2441.1,2440.9,0.40985]
[1728417649511,3.94495274,2441.0,2440.9,0.40985]
[1728417650912,3.94495274,2441.0,2440.6,6.17771]
[1728417651114,0.6833,2441.1,2440.9,0.40985]
[1728417651314,3.94495274,2440.8,2440.7,10.0585472]
[1728417651620,3.94495274,2440.8,2440.7,10.4684472]
[1728417654322,3.94495274,2440.8,2440.7,11.1685472]
[1728417655930,0.7121,2441.4,2440.8,0.40988]
[1728417656218,0.7121,2441.4,2441.3,0.4098]
[1728417656610,4.65705274,2441.4,2441.3,0.4098]
[1728417656818,4.65705274,2441.4,2441.0,3.276]
[1728417657019,3.94495274,2441.1,2440.9,0.40985]
[1728417657215,3.94495274,2441.0,2440.9,0.40985]
[1728417657623,3.94495274,2441.0,2440.8,2.56]
[1728417657624,3.94495274,2441.0,2440.8,0.40987]
[1728417657821,4.66415274,2440.9,2440.6,3.9544]
[1728417658019,3.94495274,2440.7,2440.6,4.36431]
[1728417658223,3.94495274,2440.7,2440.6,3.68591]
[1728417658523,3.94495274,2440.7,2440.6,2.96991]
[1728417659721,3.94495274,2440.7,2440.6,0.40991]
[1728417661023,4.35485274,2440.7,2440.4,2.96993]
[1728417661323,3.94495274,2440.5,2440.4,2.96993]
[1728417665122,4.5906,2440.9,2440.4,8.58356841]
[1728417665318,0.40989,2440.8,2440.6,0.40991]
[1728417665722,3.94495274,2440.7,2440.4,6.25539652]
[1728417665922,4.5906,2440.9,2440.4,5.64048652]
[1728417665923,3.94495274,2440.5,2440.4,5.64048652]
[1728417666125,3.94495274,2440.5,2440.4,6.22913575]
[1728417666818,3.94495274,2440.5,2440.4,5.64048652]
[1728417667133,3.94495274,2440.5,2440.4,6.22922905]
[1728417668226,3.94495274,2440.5,2440.4,7.01038697]
[1728417668529,0.6852,2441.1,2441.0,0.40985]
[1728417669129,4.63015274,2441.1,2441.0,0.40985]
[1728417669331,4.63015274,2441.1,2440.8,2.56]
[1728417669532,3.94495274,2440.9,2440.8,2.96988]
[1728417670339,3.94495274,2440.9,2440.8,0.40988]
[1728417672325,0.7228,2441.2,2440.9,1.02464]
[1728417672526,3.94495274,2441.2,2441.1,2.56]
[1728417672826,3.94495274,2441.2,2441.1,0.40983]
[1728417675324,3.94495274,2441.2,2440.8,6.31568833]
[1728417675325,3.94495274,2441.2,2440.8,1.05852833]
[1728417675528,3.94495274,2441.2,2440.9,0.99857606]
[1728417675529,1.81323,2441.1,2440.9,0.99857606]
[1728417675730,1.81323,2441.1,2440.9,0.40986]
[1728417675940,3.94495274,2441.0,2440.9,0.40986]
[1728417676231,3.94495274,2441.0,2440.7,3.2258]
[1728417676436,1.4034,2441.1,2440.8,0.40988]
[1728417676437,3.2078,2440.9,2440.8,0.40988]
[1728417676827,7.15275274,2440.9,2440.8,0.40988]
[1728417677233,7.15275274,2440.9,2440.7,0.40989]
[1728417677536,3.94495274,2440.8,2440.5,2.56]
[1728417677839,3.61767,2440.9,2440.5,2.96993]
[1728417677840,3.94495274,2440.6,2440.5,2.96993]
[1728417678033,3.94495274,2440.6,2440.5,4.13929957]
[1728417678535,3.94495274,2440.6,2440.5,0.40993]
[1728417678928,3.94495274,2440.6,2440.4,3.61774]
[1728417679130,4.63815274,2440.5,2440.4,3.61774]
[1728417679433,5.30045274,2440.5,2440.4,3.61774]
[1728417680639,5.30045274,2440.5,2440.4,3.2078]
[1728417681135,5.30045274,2440.5,2440.4,3.61775]
[1728417683941,5.30045274,2440.5,2440.4,3.2078]
[1728417684835,8.50825274,2440.5,2440.1,4.64352833]
[1728417685039,4.5633,2440.5,2440.2,1.17005921]
[1728417685242,3.94495274,2440.2,2439.8,1.05852833]
[1728417685534,3.94495274,2440.2,2439.7,6.36365149]
[1728417685535,3.94495274,2439.9,2439.7,5.61637083]
[1728417685729,5.28365274,2439.8,2439.7,0.41005]
[1728417686131,5.28365274,2439.8,2439.5,3.93]
[1728417686337,3.2078,2439.7,2439.6,0.41008]
[1728417686538,1.3387,2439.8,2439.6,0.41008]
[1728417686838,3.94495274,2439.7,2439.6,0.41008]
[1728417687338,7.15275274,2439.7,2439.6,0.41008]
[1728417687538,3.94495274,2439.7,2439.6,0.41008]
[1728417687732,3.94495274,2439.7,2439.5,3.2349]
[1728417687934,3.94495274,2439.6,2439.5,3.64499]
[1728417689244,0.7116,2440.2,2440.1,0.41]
[1728417689442,0.7116,2440.2,2440.0,2.56]
[1728417689742,0.7116,2440.2,2440.0,2.97001]
[1728417689945,3.94495274,2440.1,2439.8,2.56]
[1728417690142,3.94495274,2439.9,2439.8,2.97005]
[1728417690343,3.94495274,2439.9,2439.8,8.20896699]
[1728417702842,3.94495274,2439.9,2439.6,2.56]
[1728417703044,3.2078,2440.0,2439.5,1.08499]
[1728417703045,3.94495274,2439.6,2439.5,1.08499]
[1728417703444,3.94495274,2439.6,2439.5,0.41009]
[1728417708247,7.15275274,2439.6,2439.2,0.6694]
[1728417708447,7.15275274,2439.3,2439.1,0.41016]
[1728417708647,7.15275274,2439.3,2439.0,0.6469]
[1728417708648,4.63245274,2439.2,2439.0,1.05707]
[1728417708945,4.35512274,2439.1,2438.9,1.3618]
[1728417709149,0.6875,2439.2,2438.9,0.4102]
[1728417709150,3.94495274,2439.0,2438.9,0.4102]
[1728417709344,3.94495274,2439.0,2438.8,3.2078]
[1728417709660,0.6875,2439.2,2438.8,3.61802]
[1728417709661,3.94495274,2438.9,2438.8,3.61802]
[1728417710560,7.56295274,2438.9,2438.5,0.41026]
[1728417710853,3.94495274,2438.6,2438.5,0.41027]
[1728417711055,0.6875,2439.2,2438.6,10.54514992]
[1728417711256,0.6875,2439.2,2439.0,2.56]
[1728417711461,3.94495274,2439.1,2439.0,2.97018]
[1728417711654,3.94495274,2439.1,2439.0,0.41018]
[1728417712450,3.94495274,2439.1,2439.0,2.97018]
[1728417713360,3.94495274,2439.1,2438.9,1.06259]
[1728417713552,0.6875,2439.2,2438.9,0.41019]
[1728417713553,3.94495274,2439.0,2438.9,0.41019]
[1728417714059,3.94495274,2439.0,2438.6,0.6357]
[1728417714060,7.15275274,2439.0,2438.5,0.095]
[1728417714259,3.94495274,2438.6,2438.5,0.41025]
[1728417714555,3.94495274,2438.6,2438.3,0.4103]
[1728417714752,3.94495274,2438.4,2438.2,1.9678]
[1728417714950,0.6905,2438.5,2438.4,0.41028]
[1728417715356,4.63545274,2438.5,2438.4,0.41028]
[1728417719956,4.63545274,2438.5,2438.3,0.41029]
[1728417720160,4.63405274,2438.4,2438.3,0.4103]
[1728417720562,8.25213274,2438.4,2438.1,0.41033]
[1728417720775,3.94495274,2438.2,2438.1,0.41034]
[1728417722963,3.94495274,2438.2,2438.0,2.56]
[1728417723169,3.8969,2438.4,2438.0,0.41035]
[1728417723170,3.94495274,2438.1,2438.0,0.41035]
[1728417723368,7.56309274,2438.1,2437.8,0.20285357]
[1728417723573,3.94495274,2437.9,2437.8,0.20285357]
[1728417724075,3.94495274,2437.9,2437.6,0.41041]
[1728417724273,3.94495274,2437.7,2437.4,0.41044]
[1728417724467,3.94495274,2437.5,2437.3,2.56]
[1728417724664,4.62525274,2437.4,2437.3,0.41047]
[1728417726077,3.94495274,2437.4,2437.3,2.97047]